[Event "Titled Tuesday Blitz February 21 Early 2023"]
[White "Sokolovsky, Yahli"]
[Black "Aslanov, Umid"]
[WhiteFideId "2820242"]
[BlackFideId "13412620"]
[WhiteElo "2461"]
[BlackElo "2273"]
[Result "1/2-1/2"]
[Round "04"]
[TimeControl "180+2"]
[Date "2023.02.21"]
[WhiteClock "0:00:22"]
[BlackClock "0:00:21"]

1. b3 {[%clk 0:03:00]}  d5 {[%clk 0:03:00]} 2. Bb2 {[%clk 0:03:00]}  Nf6 {[%clk 0:02:59]} 3. e3 {[%clk 0:03:00]}  g6 {[%clk 0:02:59]} 4. Bxf6 {[%clk 0:02:54]}  exf6 {[%clk 0:03:00]} 5. d4 {[%clk 0:02:55]}  Bg7 {[%clk 0:03:00]} 6. g3 {[%clk 0:02:51]}  c5 {[%clk 0:02:57]} 7. Bg2 {[%clk 0:02:37]}  Be6 {[%clk 0:02:55]} 8. Ne2 {[%clk 0:02:37]}  f5 {[%clk 0:02:53]} 9. O-O {[%clk 0:02:35]}  O-O {[%clk 0:02:53]} 10. c3 {[%clk 0:02:32]}  cxd4 {[%clk 0:02:52]} 11. cxd4 {[%clk 0:02:23]}  Nc6 {[%clk 0:02:50]} 12. Nd2 {[%clk 0:02:24]}  a5 {[%clk 0:02:50]} 13. a3 {[%clk 0:02:10]}  Na7 {[%clk 0:02:45]} 14. Nf4 {[%clk 0:02:08]}  Nb5 {[%clk 0:02:40]} 15. Nf3 {[%clk 0:02:04]}  Rc8 {[%clk 0:02:34]} 16. Qd2 {[%clk 0:01:55]}  Nc3 {[%clk 0:02:28]} 17. Ne1 {[%clk 0:01:13]}  Qb6 {[%clk 0:02:22]} 18. Ned3 {[%clk 0:01:09]}  Ne4 {[%clk 0:01:57]} 19. Bxe4 {[%clk 0:01:08]}  dxe4 {[%clk 0:01:55]} 20. Nc5 {[%clk 0:01:04]}  Rfd8 {[%clk 0:01:21]} 21. Qc2 {[%clk 0:00:35]}  Bd5 {[%clk 0:01:15]} 22. Rac1 {[%clk 0:00:33]}  Qb5 {[%clk 0:01:04]} 23. a4 {[%clk 0:00:22]}  Qb4 {[%clk 0:00:58]} 24. Nxd5 {[%clk 0:00:15]}  Rxd5 {[%clk 0:00:57]} 25. Nd3 {[%clk 0:00:16]}  Rxc2 {[%clk 0:00:49]} 26. Nxb4 {[%clk 0:00:16]}  Rxc1 {[%clk 0:00:48]} 27. Nxd5 {[%clk 0:00:17]}  Rc2 {[%clk 0:00:36]} 28. Rb1 {[%clk 0:00:17]}  Bf8 {[%clk 0:00:26]} 29. b4 {[%clk 0:00:13]}  axb4 {[%clk 0:00:26]} 30. Nxb4 {[%clk 0:00:13]}  Bxb4 {[%clk 0:00:14]} 31. Rxb4 {[%clk 0:00:14]}  Rc7 {[%clk 0:00:15]} 32. h4 {[%clk 0:00:14]}  Kf8 {[%clk 0:00:15]} 33. Rb6 {[%clk 0:00:13]}  Ke7 {[%clk 0:00:15]} 34. a5 {[%clk 0:00:14]}  Kd7 {[%clk 0:00:15]} 35. Kf1 {[%clk 0:00:14]}  Ke7 {[%clk 0:00:15]} 36. Ke2 {[%clk 0:00:15]}  f6 {[%clk 0:00:12]} 37. Kd2 {[%clk 0:00:15]}  g5 {[%clk 0:00:12]} 38. hxg5 {[%clk 0:00:14]}  fxg5 {[%clk 0:00:13]} 39. Rh6 {[%clk 0:00:15]}  Kf8 {[%clk 0:00:12]} 40. Rf6+ {[%clk 0:00:14]}  Rf7 {[%clk 0:00:12]} 41. Rb6 {[%clk 0:00:10]}  Kg7 {[%clk 0:00:10]} 42. Rb5 {[%clk 0:00:09]}  h5 {[%clk 0:00:10]} 43. Ke2 {[%clk 0:00:09]}  Kf6 {[%clk 0:00:08]} 44. Rb6+ {[%clk 0:00:09]}  Kg7 {[%clk 0:00:09]} 45. Kf1 {[%clk 0:00:10]}  Rc7 {[%clk 0:00:08]} 46. Rb5 {[%clk 0:00:11]}  Kg6 {[%clk 0:00:08]} 47. Kg2 {[%clk 0:00:11]}  h4 {[%clk 0:00:07]} 48. gxh4 {[%clk 0:00:06]}  gxh4 {[%clk 0:00:08]} 49. Kh3 {[%clk 0:00:07]}  Kg5 {[%clk 0:00:08]} 50. Rb6 {[%clk 0:00:06]}  Rc2 {[%clk 0:00:04]} 51. Rxb7 {[%clk 0:00:05]}  Rxf2 {[%clk 0:00:05]} 52. Rg7+ {[%clk 0:00:05]}  Kh5 {[%clk 0:00:05]} 53. Rh7+ {[%clk 0:00:05]}  Kg5 {[%clk 0:00:06]} 54. Rg7+ {[%clk 0:00:04]}  Kh5 {[%clk 0:00:07]} 55. a6 {[%clk 0:00:05]}  Rf3+ {[%clk 0:00:07]} 56. Kh2 {[%clk 0:00:06]}  Rxe3 {[%clk 0:00:07]} 57. a7 {[%clk 0:00:06]}  Ra3 {[%clk 0:00:08]} 58. d5 {[%clk 0:00:07]}  e3 {[%clk 0:00:08]} 59. d6 {[%clk 0:00:07]}  e2 {[%clk 0:00:09]} 60. Rh7+ {[%clk 0:00:03]}  Kg5 {[%clk 0:00:08]} 61. Re7 {[%clk 0:00:04]}  Rxa7 {[%clk 0:00:08]} 62. Rxe2 {[%clk 0:00:05]}  Rd7 {[%clk 0:00:08]} 63. Rd2 {[%clk 0:00:05]}  Kf4 {[%clk 0:00:09]} 64. Kh3 {[%clk 0:00:06]}  Ke3 {[%clk 0:00:09]} 65. Rd1 {[%clk 0:00:03]}  Kf4 {[%clk 0:00:07]} 66. Rf1+ {[%clk 0:00:01]}  Kg5 {[%clk 0:00:07]} 67. Rg1+ {[%clk 0:00:02]}  Kh5 {[%clk 0:00:07]} 68. Rd1 {[%clk 0:00:02]}  Kg5 {[%clk 0:00:05]} 69. Rg1+ {[%clk 0:00:03]}  Kf6 {[%clk 0:00:06]} 70. Rd1 {[%clk 0:00:03]}  Ke5 {[%clk 0:00:05]} 71. Kxh4 {[%clk 0:00:03]}  Rxd6 {[%clk 0:00:06]} 72. Re1+ {[%clk 0:00:04]}  Kf4 {[%clk 0:00:06]} 73. Rf1+ {[%clk 0:00:04]}  Ke4 {[%clk 0:00:07]} 74. Re1+ {[%clk 0:00:05]}  Kd4 {[%clk 0:00:06]} 75. Kg5 {[%clk 0:00:05]}  Rd5 {[%clk 0:00:04]} 76. Kf4 {[%clk 0:00:05]}  Kc4 {[%clk 0:00:04]} 77. Re6 {[%clk 0:00:05]}  Kc5 {[%clk 0:00:04]} 78. Re8 {[%clk 0:00:05]}  Kd4 {[%clk 0:00:04]} 79. Ra8 {[%clk 0:00:05]}  Rc5 {[%clk 0:00:04]} 80. Rd8+ {[%clk 0:00:05]}  Kc4 {[%clk 0:00:04]} 81. Rd1 {[%clk 0:00:05]}  Rd5 {[%clk 0:00:04]} 82. Rc1+ {[%clk 0:00:05]}  Kd4 {[%clk 0:00:05]} 83. Rd1+ {[%clk 0:00:05]}  Kc5 {[%clk 0:00:05]} 84. Re1 {[%clk 0:00:06]}  Kd6 {[%clk 0:00:06]} 85. Re8 {[%clk 0:00:07]}  Rd4+ {[%clk 0:00:06]} 86. Kxf5 {[%clk 0:00:07]}  Rb4 {[%clk 0:00:06]} 87. Rd8+ {[%clk 0:00:07]}  Ke7 {[%clk 0:00:07]} 88. Rd1 {[%clk 0:00:08]}  Rb5+ {[%clk 0:00:08]} 89. Ke4 {[%clk 0:00:08]}  Ke6 {[%clk 0:00:08]} 90. Ra1 {[%clk 0:00:08]}  Rb4+ {[%clk 0:00:09]} 91. Kd3 {[%clk 0:00:09]}  Kd5 {[%clk 0:00:10]} 92. Ra5+ {[%clk 0:00:09]}  Kc6 {[%clk 0:00:10]} 93. Rh5 {[%clk 0:00:10]}  Rb3+ {[%clk 0:00:10]} 94. Kc4 {[%clk 0:00:10]}  Rb1 {[%clk 0:00:11]} 95. Rh6+ {[%clk 0:00:11]}  Kd7 {[%clk 0:00:11]} 96. Kd5 {[%clk 0:00:12]}  Rd1+ {[%clk 0:00:12]} 97. Kc5 {[%clk 0:00:12]}  Rc1+ {[%clk 0:00:12]} 98. Kd4 {[%clk 0:00:13]}  Rd1+ {[%clk 0:00:13]} 99. Kc3 {[%clk 0:00:13]}  Rc1+ {[%clk 0:00:14]} 100. Kd2 {[%clk 0:00:14]}  Rc6 {[%clk 0:00:14]} 101. Rh7+ {[%clk 0:00:14]}  Kd6 {[%clk 0:00:15]} 102. Kd3 {[%clk 0:00:15]}  Kd5 {[%clk 0:00:15]} 103. Rh5+ {[%clk 0:00:15]}  Kd6 {[%clk 0:00:16]} 104. Kd4 {[%clk 0:00:16]}  Rc1 {[%clk 0:00:16]} 105. Rh6+ {[%clk 0:00:16]}  Ke7 {[%clk 0:00:17]} 106. Rh2 {[%clk 0:00:17]}  Rd1+ {[%clk 0:00:17]} 107. Ke5 {[%clk 0:00:18]}  Re1+ {[%clk 0:00:17]} 108. Kf5 {[%clk 0:00:18]}  Rf1+ {[%clk 0:00:18]} 109. Ke4 {[%clk 0:00:19]}  Re1+ {[%clk 0:00:19]} 110. Kf3 {[%clk 0:00:19]}  Rf1+ {[%clk 0:00:19]} 111. Ke2 {[%clk 0:00:20]}  Rf7 {[%clk 0:00:19]} 112. Rh6 {[%clk 0:00:20]}  Rf6 {[%clk 0:00:18]} 113. Rh7+ {[%clk 0:00:21]}  Ke6 {[%clk 0:00:18]} 114. Ra7 {[%clk 0:00:21]}  Kf5 {[%clk 0:00:18]} 115. Kf3 {[%clk 0:00:21]}  Kg6+ {[%clk 0:00:18]} 116. Kg4 {[%clk 0:00:21]}  Rb6 {[%clk 0:00:18]} 117. Ra4 {[%clk 0:00:22]}  Rb5 {[%clk 0:00:19]} 118. Ra6+ {[%clk 0:00:22]}  Kf7 {[%clk 0:00:19]} 119. Kf4 {[%clk 0:00:23]}  Rb4+ {[%clk 0:00:19]} 120. Ke5 {[%clk 0:00:23]}  Rb1 {[%clk 0:00:20]} 121. Ra7+ {[%clk 0:00:22]}  Kg6 {[%clk 0:00:20]} 122. Ra5 {[%clk 0:00:21]}  Re1+ {[%clk 0:00:20]} 123. Kf4 {[%clk 0:00:22]}  Rf1+ {[%clk 0:00:20]} 124. Ke4 {[%clk 0:00:23]}  Rd1 {[%clk 0:00:21]} 125. Ra2 {[%clk 0:00:22]}  Re1+ {[%clk 0:00:21]} 126. Kf3 {[%clk 0:00:22]}  Rf1+ {[%clk 0:00:21]} 127. Rf2 {[%clk 0:00:21]}  Rxf2+ {[%clk 0:00:21]} 128. Kxf2 {[%clk 0:00:22]} 1/2-1/2


[Site "https://www.chess.com"]

[Event "Titled Tuesday Blitz February 21 Early 2023"]
[White "Csonka, Balazs"]
[Black "Shohat, Yotam"]
[WhiteFideId "742910"]
[BlackFideId "2813955"]
[WhiteElo "2496"]
[BlackElo "2346"]
[Result "1-0"]
[Round "04"]
[TimeControl "180+2"]
[Date "2023.02.21"]
[WhiteClock "0:00:05"]
[BlackClock "0:00:01"]

1. d4 {[%clk 0:03:00]}  Nf6 {[%clk 0:02:58]} 2. c4 {[%clk 0:02:59]}  e6 {[%clk 0:02:55]} 3. Nc3 {[%clk 0:02:56]}  Bb4 {[%clk 0:02:53]} 4. f3 {[%clk 0:02:50]}  Nc6 {[%clk 0:02:53]} 5. e4 {[%clk 0:02:47]}  e5 {[%clk 0:02:51]} 6. Ne2 {[%clk 0:02:45]}  exd4 {[%clk 0:02:50]} 7. Nxd4 {[%clk 0:02:43]}  O-O {[%clk 0:02:47]} 8. Be3 {[%clk 0:02:39]}  Re8 {[%clk 0:02:44]} 9. Qd2 {[%clk 0:02:17]}  d5 {[%clk 0:02:34]} 10. cxd5 {[%clk 0:01:51]}  Nxd4 {[%clk 0:02:06]} 11. Qxd4 {[%clk 0:01:41]}  Ba5 {[%clk 0:01:11]} 12. O-O-O {[%clk 0:01:32]}  c6 {[%clk 0:00:31]} 13. dxc6 {[%clk 0:01:26]}  Qe7 {[%clk 0:00:27]} 14. Bb5 {[%clk 0:01:11]}  Be6 {[%clk 0:00:17]} 15. Qc5 {[%clk 0:00:57]}  Bb6 {[%clk 0:00:15]} 16. Qxe7 {[%clk 0:00:33]}  Bxe3+ {[%clk 0:00:14]} 17. Kb1 {[%clk 0:00:34]}  Rxe7 {[%clk 0:00:15]} 18. cxb7 {[%clk 0:00:34]}  Rb8 {[%clk 0:00:14]} 19. Ba6 {[%clk 0:00:18]}  Nd7 {[%clk 0:00:10]} 20. Nd5 {[%clk 0:00:11]}  Bxd5 {[%clk 0:00:10]} 21. Rxd5 {[%clk 0:00:12]}  Nc5 {[%clk 0:00:11]} 22. Rc1 {[%clk 0:00:05]}  Nxa6 {[%clk 0:00:07]} 23. Rc8+ {[%clk 0:00:04]}  Re8 {[%clk 0:00:07]} 24. Rxe8+ {[%clk 0:00:02]}  Rxe8 {[%clk 0:00:07]} 25. Ra5 {[%clk 0:00:02]}  Nb8 {[%clk 0:00:06]} 26. Ra3 {[%clk 0:00:02]}  Bb6 {[%clk 0:00:05]} 27. Rc3 {[%clk 0:00:02]}  f6 {[%clk 0:00:05]} 28. a4 {[%clk 0:00:02]}  Kf7 {[%clk 0:00:05]} 29. b4 {[%clk 0:00:03]}  Ke7 {[%clk 0:00:04]} 30. a5 {[%clk 0:00:03]}  Bd4 {[%clk 0:00:04]} 31. Rc4 {[%clk 0:00:03]}  Be5 {[%clk 0:00:03]} 32. b5 {[%clk 0:00:04]}  Bxh2 {[%clk 0:00:02]} 33. a6 {[%clk 0:00:03]}  Be5 {[%clk 0:00:02]} 34. b6 {[%clk 0:00:04]}  axb6 {[%clk 0:00:02]} 35. a7 {[%clk 0:00:05]}  Nd7 {[%clk 0:00:01]} 36. a8=Q {[%clk 0:00:05]} 1-0


[Site "https://www.chess.com"]

[Event "Titled Tuesday Blitz February 21 Early 2023"]
[White "Mindlin, Alon"]
[Black "Ouakhir, Pierre Mehdi"]
[WhiteFideId "2800071"]
[BlackFideId "9000437"]
[WhiteElo "2435"]
[BlackElo "2212"]
[Result "1-0"]
[Round "04"]
[TimeControl "180+2"]
[Date "2023.02.21"]
[WhiteClock "0:01:57"]
[BlackClock "0:00:06"]

1. e4 {[%clk 0:03:00]}  e5 {[%clk 0:02:59]} 2. Nf3 {[%clk 0:03:00]}  Nc6 {[%clk 0:02:58]} 3. Nc3 {[%clk 0:03:00]}  Nf6 {[%clk 0:02:57]} 4. Bb5 {[%clk 0:03:00]}  Bb4 {[%clk 0:02:57]} 5. O-O {[%clk 0:03:00]}  O-O {[%clk 0:02:56]} 6. d3 {[%clk 0:03:00]}  d6 {[%clk 0:02:56]} 7. Bg5 {[%clk 0:03:00]}  Bxc3 {[%clk 0:02:56]} 8. bxc3 {[%clk 0:03:00]}  Bd7 {[%clk 0:02:55]} 9. Rb1 {[%clk 0:02:59]}  Rb8 {[%clk 0:02:52]} 10. Re1 {[%clk 0:02:58]}  h6 {[%clk 0:02:29]} 11. Bc1 {[%clk 0:02:52]}  Nh7 {[%clk 0:02:22]} 12. d4 {[%clk 0:02:50]}  Qe7 {[%clk 0:02:09]} 13. d5 {[%clk 0:02:37]}  Na5 {[%clk 0:02:02]} 14. Bxd7 {[%clk 0:02:21]}  Qxd7 {[%clk 0:02:00]} 15. Nh4 {[%clk 0:02:21]}  Qe7 {[%clk 0:01:46]} 16. Nf5 {[%clk 0:02:14]}  Qf6 {[%clk 0:01:46]} 17. Re3 {[%clk 0:02:11]}  b6 {[%clk 0:01:39]} 18. Rf3 {[%clk 0:02:11]}  Ng5 {[%clk 0:01:30]} 19. Rg3 {[%clk 0:02:08]}  Nxe4 {[%clk 0:00:59]} 20. Rxg7+ {[%clk 0:02:05]}  Kh8 {[%clk 0:00:52]} 21. Qh5 {[%clk 0:02:04]}  Rg8 {[%clk 0:00:07]} 22. Bxh6 {[%clk 0:02:00]}  Qxf5 {[%clk 0:00:06]} 23. Bg5+ {[%clk 0:01:57]} 1-0


[Site "https://www.chess.com"]

[Event "Titled Tuesday Blitz February 21 Early 2023"]
[White "Annaberdiyev, Meylis"]
[Black "QuiesPrecatio"]
[WhiteFideId "14000563"]
[WhiteElo "2495"]
[BlackElo "2417"]
[Result "1-0"]
[Round "04"]
[TimeControl "180+2"]
[Date "2023.02.21"]
[WhiteClock "0:01:02"]
[BlackClock "0:00:05"]

1. e4 {[%clk 0:03:00]}  c5 {[%clk 0:02:58]} 2. Nf3 {[%clk 0:02:59]}  Nc6 {[%clk 0:02:59]} 3. Bb5 {[%clk 0:02:58]}  g6 {[%clk 0:02:58]} 4. O-O {[%clk 0:02:58]}  Bg7 {[%clk 0:02:58]} 5. c3 {[%clk 0:02:59]}  Nf6 {[%clk 0:02:56]} 6. Re1 {[%clk 0:02:58]}  O-O {[%clk 0:02:56]} 7. d4 {[%clk 0:02:58]}  cxd4 {[%clk 0:02:35]} 8. cxd4 {[%clk 0:02:55]}  d6 {[%clk 0:02:33]} 9. h3 {[%clk 0:02:52]}  a6 {[%clk 0:02:32]} 10. Bxc6 {[%clk 0:02:51]}  bxc6 {[%clk 0:02:33]} 11. Nc3 {[%clk 0:02:51]}  Nd7 {[%clk 0:02:27]} 12. Bg5 {[%clk 0:02:43]}  h6 {[%clk 0:02:17]} 13. Be3 {[%clk 0:02:43]}  Rb8 {[%clk 0:01:49]} 14. Qd2 {[%clk 0:02:43]}  Kh7 {[%clk 0:01:47]} 15. Rac1 {[%clk 0:02:43]}  Qa5 {[%clk 0:01:41]} 16. b3 {[%clk 0:02:42]}  Bb7 {[%clk 0:01:39]} 17. Na4 {[%clk 0:02:28]}  Qxd2 {[%clk 0:01:38]} 18. Nxd2 {[%clk 0:02:29]}  Rfc8 {[%clk 0:01:33]} 19. Rc2 {[%clk 0:02:27]}  Ba8 {[%clk 0:01:18]} 20. Rec1 {[%clk 0:02:26]}  Rb4 {[%clk 0:01:10]} 21. a3 {[%clk 0:02:25]}  Rxd4 {[%clk 0:01:03]} 22. Bxd4 {[%clk 0:02:22]}  Bxd4 {[%clk 0:01:04]} 23. b4 {[%clk 0:02:21]}  Ba7 {[%clk 0:01:01]} 24. Nb3 {[%clk 0:02:17]}  c5 {[%clk 0:00:56]} 25. bxc5 {[%clk 0:01:57]}  Bxe4 {[%clk 0:00:55]} 26. Re2 {[%clk 0:01:57]}  Bd5 {[%clk 0:00:27]} 27. Rxe7 {[%clk 0:01:56]}  Bxb3 {[%clk 0:00:18]} 28. Rxd7 {[%clk 0:01:55]}  Bxc5 {[%clk 0:00:18]} 29. Nxc5 {[%clk 0:01:26]}  dxc5 {[%clk 0:00:18]} 30. Rd6 {[%clk 0:01:20]}  a5 {[%clk 0:00:16]} 31. Rc3 {[%clk 0:01:16]}  a4 {[%clk 0:00:14]} 32. h4 {[%clk 0:01:12]}  h5 {[%clk 0:00:11]} 33. Kh2 {[%clk 0:01:10]}  c4 {[%clk 0:00:11]} 34. Rd7 {[%clk 0:01:06]}  Kg7 {[%clk 0:00:12]} 35. Rf3 {[%clk 0:01:06]}  Rf8 {[%clk 0:00:12]} 36. Rc7 {[%clk 0:01:05]}  Kg8 {[%clk 0:00:11]} 37. Rf6 {[%clk 0:01:04]}  Kg7 {[%clk 0:00:11]} 38. Rf4 {[%clk 0:01:05]}  Kg8 {[%clk 0:00:11]} 39. f3 {[%clk 0:01:05]}  Kg7 {[%clk 0:00:11]} 40. g4 {[%clk 0:01:06]}  hxg4 {[%clk 0:00:11]} 41. fxg4 {[%clk 0:01:07]}  Kg8 {[%clk 0:00:11]} 42. Kg3 {[%clk 0:01:07]}  Kg7 {[%clk 0:00:12]} 43. g5 {[%clk 0:01:06]}  Kg8 {[%clk 0:00:11]} 44. Rf6 {[%clk 0:01:05]}  Kg7 {[%clk 0:00:11]} 45. Kf4 {[%clk 0:01:05]}  Kg8 {[%clk 0:00:12]} 46. Kf3 {[%clk 0:01:05]}  Kg7 {[%clk 0:00:12]} 47. Ke3 {[%clk 0:01:05]}  Re8+ {[%clk 0:00:08]} 48. Kd2 {[%clk 0:01:05]}  Rd8+ {[%clk 0:00:07]} 49. Kc3 {[%clk 0:01:06]}  Rd3+ {[%clk 0:00:07]} 50. Kb4 {[%clk 0:01:06]}  c3 {[%clk 0:00:08]} 51. Rxc3 {[%clk 0:01:04]}  Rd4+ {[%clk 0:00:08]} 52. Ka5 {[%clk 0:01:02]}  Rxh4 {[%clk 0:00:09]} 53. Rc5 {[%clk 0:01:03]}  Rg4 {[%clk 0:00:08]} 54. Rb6 {[%clk 0:01:02]}  Rg3 {[%clk 0:00:08]} 55. Rb8 {[%clk 0:01:02]}  Rg4 {[%clk 0:00:09]} 56. Rcc8 {[%clk 0:01:02]}  f5 {[%clk 0:00:08]} 57. Rb7+ {[%clk 0:01:02]}  Bf7 {[%clk 0:00:05]} 58. Rcc7 {[%clk 0:01:02]} 1-0


[Site "https://www.chess.com"]

[Event "Titled Tuesday Blitz February 21 Early 2023"]
[White "Derix, Bernhard"]
[Black "Miszler, Levente"]
[WhiteFideId "4642368"]
[BlackFideId "763276"]
[WhiteElo "2065"]
[BlackElo "2271"]
[Result "1-0"]
[Round "04"]
[TimeControl "180+2"]
[Date "2023.02.21"]
[WhiteClock "0:01:33"]
[BlackClock "0:01:46"]

1. e4 {[%clk 0:03:00]}  e6 {[%clk 0:03:00]} 2. d3 {[%clk 0:02:59]}  d5 {[%clk 0:02:56]} 3. Nd2 {[%clk 0:02:59]}  Nf6 {[%clk 0:02:56]} 4. Ngf3 {[%clk 0:02:59]}  Be7 {[%clk 0:02:56]} 5. g3 {[%clk 0:02:59]}  c5 {[%clk 0:02:56]} 6. Bg2 {[%clk 0:02:59]}  Nc6 {[%clk 0:02:57]} 7. O-O {[%clk 0:02:59]}  O-O {[%clk 0:02:57]} 8. Re1 {[%clk 0:03:00]}  b5 {[%clk 0:02:57]} 9. exd5 {[%clk 0:03:00]}  exd5 {[%clk 0:02:56]} 10. d4 {[%clk 0:02:58]}  c4 {[%clk 0:02:54]} 11. a4 {[%clk 0:02:58]}  Rb8 {[%clk 0:02:44]} 12. axb5 {[%clk 0:02:56]}  Rxb5 {[%clk 0:02:45]} 13. Ne5 {[%clk 0:02:55]}  Nxd4 {[%clk 0:02:18]} 14. c3 {[%clk 0:02:26]}  Nb3 {[%clk 0:02:15]} 15. Nxb3 {[%clk 0:02:26]}  Rxb3 {[%clk 0:02:16]} 16. Nc6 {[%clk 0:02:25]}  Qc7 {[%clk 0:02:09]} 17. Nxe7+ {[%clk 0:02:23]}  Kh8 {[%clk 0:02:08]} 18. Nxd5 {[%clk 0:02:15]}  Qd8 {[%clk 0:02:05]} 19. Rxa7 {[%clk 0:02:05]}  Bg4 {[%clk 0:01:59]} 20. Qd4 {[%clk 0:02:02]}  Nxd5 {[%clk 0:01:58]} 21. Bxd5 {[%clk 0:01:41]}  Rb5 {[%clk 0:01:52]} 22. Bh6 {[%clk 0:01:33]}  f6 {[%clk 0:01:46]} 23. Bxg7# {[%clk 0:01:33]} 1-0


[Site "https://www.chess.com"]

[Event "Titled Tuesday Blitz February 21 Early 2023"]
[White "Tan, Jun Ying"]
[Black "Sovetbekova, Nurai"]
[WhiteFideId "5710413"]
[BlackFideId "13801910"]
[WhiteElo "2307"]
[BlackElo "1764"]
[Result "1-0"]
[Round "04"]
[TimeControl "180+2"]
[Date "2023.02.21"]
[WhiteClock "0:00:46"]
[BlackClock "0:00:16"]

1. d4 {[%clk 0:03:00]}  Nf6 {[%clk 0:02:59]} 2. c4 {[%clk 0:03:01]}  g6 {[%clk 0:02:59]} 3. Nc3 {[%clk 0:03:01]}  d5 {[%clk 0:03:00]} 4. cxd5 {[%clk 0:02:59]}  Nxd5 {[%clk 0:03:00]} 5. Na4 {[%clk 0:03:00]}  Bg7 {[%clk 0:02:57]} 6. e4 {[%clk 0:03:00]}  Nb4 {[%clk 0:02:47]} 7. a3 {[%clk 0:02:56]}  Bxd4 {[%clk 0:01:57]} 8. axb4 {[%clk 0:02:48]}  Bxf2+ {[%clk 0:01:57]} 9. Ke2 {[%clk 0:02:49]}  Bg4+ {[%clk 0:01:53]} 10. Nf3 {[%clk 0:02:49]}  Qxd1+ {[%clk 0:01:50]} 11. Kxd1 {[%clk 0:02:48]}  Nc6 {[%clk 0:01:49]} 12. b5 {[%clk 0:02:15]}  Nd4 {[%clk 0:01:44]} 13. Be2 {[%clk 0:01:38]}  O-O-O {[%clk 0:01:13]} 14. Nxd4 {[%clk 0:01:37]}  Rxd4+ {[%clk 0:01:13]} 15. Bd2 {[%clk 0:01:38]}  Be6 {[%clk 0:01:06]} 16. Kc2 {[%clk 0:01:18]}  Rhd8 {[%clk 0:00:50]} 17. Bc3 {[%clk 0:01:06]}  Rxe4 {[%clk 0:00:41]} 18. Bd3 {[%clk 0:00:59]}  Re3 {[%clk 0:00:24]} 19. Nc5 {[%clk 0:00:52]}  Bg4 {[%clk 0:00:20]} 20. Rxa7 {[%clk 0:00:47]}  b6 {[%clk 0:00:16]} 21. Ra8# {[%clk 0:00:46]} 1-0


[Site "https://www.chess.com"]

[Event "Titled Tuesday Blitz February 21 Early 2023"]
[White "Afanasieva, Alexandra"]
[Black "Al-Tarboush, Ward"]
[WhiteFideId "34126926"]
[BlackFideId "7601450"]
[WhiteElo "1857"]
[BlackElo "2256"]
[Result "1-0"]
[Round "04"]
[TimeControl "180+2"]
[Date "2023.02.21"]
[WhiteClock "0:00:05"]
[BlackClock "0:01:24"]

1. e4 {[%clk 0:02:57]}  c5 {[%clk 0:02:56]} 2. Nf3 {[%clk 0:02:56]}  Nc6 {[%clk 0:02:56]} 3. Bb5 {[%clk 0:02:56]}  e6 {[%clk 0:02:56]} 4. Bxc6 {[%clk 0:02:55]}  bxc6 {[%clk 0:02:55]} 5. O-O {[%clk 0:02:55]}  Ne7 {[%clk 0:02:52]} 6. d3 {[%clk 0:02:52]}  Ng6 {[%clk 0:02:51]} 7. b3 {[%clk 0:02:47]}  Be7 {[%clk 0:02:51]} 8. Bb2 {[%clk 0:02:47]}  f6 {[%clk 0:02:50]} 9. Nbd2 {[%clk 0:02:47]}  e5 {[%clk 0:02:47]} 10. Re1 {[%clk 0:02:41]}  O-O {[%clk 0:02:47]} 11. Nf1 {[%clk 0:02:41]}  d5 {[%clk 0:02:44]} 12. Ng3 {[%clk 0:02:38]}  Nf4 {[%clk 0:02:36]} 13. Ne2 {[%clk 0:02:29]}  Nxe2+ {[%clk 0:02:24]} 14. Qxe2 {[%clk 0:02:23]}  Bg4 {[%clk 0:02:25]} 15. h3 {[%clk 0:02:22]}  Bh5 {[%clk 0:02:25]} 16. g4 {[%clk 0:02:23]}  Bf7 {[%clk 0:02:23]} 17. Rad1 {[%clk 0:02:19]}  Qd7 {[%clk 0:02:22]} 18. Nh4 {[%clk 0:01:34]}  g6 {[%clk 0:02:22]} 19. Nf3 {[%clk 0:01:33]}  Rad8 {[%clk 0:02:22]} 20. c4 {[%clk 0:01:19]}  Be6 {[%clk 0:02:22]} 21. Nh2 {[%clk 0:00:54]}  h6 {[%clk 0:02:17]} 22. Bc1 {[%clk 0:00:52]}  g5 {[%clk 0:02:14]} 23. Nf1 {[%clk 0:00:39]}  h5 {[%clk 0:02:12]} 24. f3 {[%clk 0:00:38]}  Kg7 {[%clk 0:02:08]} 25. Ng3 {[%clk 0:00:28]}  hxg4 {[%clk 0:02:05]} 26. hxg4 {[%clk 0:00:26]}  Rh8 {[%clk 0:02:06]} 27. Kg2 {[%clk 0:00:26]}  Rh4 {[%clk 0:02:03]} 28. Rh1 {[%clk 0:00:23]}  Rdh8 {[%clk 0:02:03]} 29. Nh5+ {[%clk 0:00:22]}  R8xh5 {[%clk 0:02:00]} 30. gxh5 {[%clk 0:00:21]}  Bh3+ {[%clk 0:02:00]} 31. Kf2 {[%clk 0:00:17]}  d4 {[%clk 0:01:53]} 32. Rdg1 {[%clk 0:00:16]}  Kh6 {[%clk 0:01:48]} 33. Rg3 {[%clk 0:00:12]}  Rxh5 {[%clk 0:01:44]} 34. Qe1 {[%clk 0:00:11]}  Rh4 {[%clk 0:01:33]} 35. Qg1 {[%clk 0:00:10]}  Kh7 {[%clk 0:01:23]} 36. Qh2 {[%clk 0:00:06]}  g4 {[%clk 0:01:23]} 37. fxg4 {[%clk 0:00:05]}  f5 {[%clk 0:01:24]} 38. gxf5 {[%clk 0:00:05]} 1-0


[Site "https://www.chess.com"]

[Event "Titled Tuesday Blitz February 21 Early 2023"]
[White "Lauridsen, Jesper Morch"]
[Black "Wadsworth, Matthew J"]
[WhiteFideId "1401890"]
[BlackFideId "415804"]
[WhiteElo "2309"]
[BlackElo "2428"]
[Result "1-0"]
[Round "04"]
[TimeControl "180+2"]
[Date "2023.02.21"]
[WhiteClock "0:00:03"]
[BlackClock "0:00:02"]

1. e4 {[%clk 0:03:00]}  e6 {[%clk 0:02:58]} 2. d4 {[%clk 0:02:58]}  d5 {[%clk 0:02:58]} 3. e5 {[%clk 0:02:59]}  c5 {[%clk 0:02:57]} 4. c3 {[%clk 0:02:59]}  Nc6 {[%clk 0:02:54]} 5. Nf3 {[%clk 0:02:59]}  Qb6 {[%clk 0:02:54]} 6. Bd3 {[%clk 0:02:59]}  Nh6 {[%clk 0:02:51]} 7. O-O {[%clk 0:02:56]}  cxd4 {[%clk 0:02:50]} 8. cxd4 {[%clk 0:02:54]}  Nf5 {[%clk 0:02:50]} 9. Nc3 {[%clk 0:02:53]}  Nfxd4 {[%clk 0:02:42]} 10. Nxd4 {[%clk 0:02:51]}  Qxd4 {[%clk 0:02:40]} 11. Re1 {[%clk 0:02:45]}  a6 {[%clk 0:02:39]} 12. Be3 {[%clk 0:02:28]}  Qh4 {[%clk 0:02:31]} 13. Na4 {[%clk 0:02:16]}  Bb4 {[%clk 0:02:26]} 14. Re2 {[%clk 0:02:01]}  O-O {[%clk 0:02:23]} 15. Nb6 {[%clk 0:01:56]}  Rb8 {[%clk 0:02:21]} 16. Qa4 {[%clk 0:01:48]}  Be7 {[%clk 0:02:13]} 17. f4 {[%clk 0:01:38]}  Bd8 {[%clk 0:01:52]} 18. Nxc8 {[%clk 0:01:26]}  Rxc8 {[%clk 0:01:51]} 19. Rf1 {[%clk 0:01:16]}  f5 {[%clk 0:01:36]} 20. exf6 {[%clk 0:01:10]}  Bxf6 {[%clk 0:01:33]} 21. Bc5 {[%clk 0:01:02]}  Rfe8 {[%clk 0:01:21]} 22. Re3 {[%clk 0:00:53]}  b5 {[%clk 0:00:44]} 23. Qxa6 {[%clk 0:00:36]}  Nb4 {[%clk 0:00:16]} 24. Bxb4 {[%clk 0:00:20]}  Bd4 {[%clk 0:00:15]} 25. Bd2 {[%clk 0:00:20]}  e5 {[%clk 0:00:13]} 26. Kh1 {[%clk 0:00:14]}  Bxe3 {[%clk 0:00:11]} 27. Bxe3 {[%clk 0:00:14]}  exf4 {[%clk 0:00:11]} 28. Bxf4 {[%clk 0:00:11]}  Rf8 {[%clk 0:00:05]} 29. Bg3 {[%clk 0:00:09]}  Rxf1+ {[%clk 0:00:04]} 30. Bxf1 {[%clk 0:00:09]}  Qg4 {[%clk 0:00:04]} 31. h3 {[%clk 0:00:07]}  Qf5 {[%clk 0:00:03]} 32. Bd3 {[%clk 0:00:05]}  Rc1+ {[%clk 0:00:02]} 33. Kh2 {[%clk 0:00:03]}  Qxd3 {[%clk 0:00:03]} 34. Qe6+ {[%clk 0:00:03]}  Kf8 {[%clk 0:00:02]} 35. Bd6# {[%clk 0:00:03]} 1-0


[Site "https://www.chess.com"]